bitfinex/quotes_BTCUSD_20251114
["timestamp","ask_amount","ask_price","bid_price","bid_amount"]
[1763153889152,21.21312304,94572.0,94571.0,58.6912573]
[1763153889578,21.21312304,94572.0,94571.0,58.64348755]
[1763153890190,21.21312304,94572.0,94571.0,58.59185258]
[1763153890843,21.46788304,94572.0,94571.0,58.59185258]
[1763153891260,21.46588304,94572.0,94571.0,58.59185258]
[1763153891468,21.46588304,94572.0,94571.0,58.57910698]
[1763153891685,21.46288304,94572.0,94571.0,58.57910698]
[1763153892109,21.46788304,94572.0,94571.0,58.57910698]
[1763153892537,21.46288304,94572.0,94571.0,58.57910698]
[1763153892735,21.46688304,94572.0,94571.0,58.54086927]
[1763153893059,21.21212304,94572.0,94571.0,58.509044]
[1763153893261,21.21212304,94572.0,94571.0,58.48355271]
[1763153893669,21.20658708,94572.0,94571.0,58.48355271]
[1763153894509,21.20658708,94572.0,94571.0,58.47801611]
[1763153894708,21.20258708,94572.0,94571.0,58.47247956]
[1763153894918,21.20058708,94572.0,94571.0,58.47247956]
[1763153895138,21.20558708,94572.0,94571.0,58.46694303]
[1763153895342,21.20004911,94572.0,94571.0,58.46694303]
[1763153895552,21.20004911,94572.0,94571.0,58.46030905]
[1763153895553,21.19604911,94572.0,94571.0,58.46030905]
[1763153895759,21.19604911,94572.0,94571.0,58.45367507]
[1763153896385,21.20004911,94572.0,94571.0,58.45367507]
[1763153896791,21.19904911,94572.0,94571.0,58.45367507]
[1763153897220,21.20004911,94572.0,94571.0,58.45367507]
[1763153897443,21.19904911,94572.0,94571.0,58.45367507]
[1763153897657,21.19904911,94572.0,94571.0,58.37005178]
[1763153897872,21.20158676,94572.0,94571.0,58.37005178]
[1763153898153,21.20558676,94572.0,94571.0,58.32452158]
[1763153898360,20.95798676,94572.0,94571.0,58.26269836]
[1763153898563,20.95798676,94572.0,94571.0,58.19162886]
[1763153898772,20.95244911,94572.0,94571.0,58.16972306]
[1763153898973,20.94844911,94572.0,94571.0,58.16972306]
[1763153899175,20.94844911,94572.0,94571.0,58.16772306]
[1763153899388,20.95244911,94572.0,94571.0,58.16472306]
[1763153899590,20.95244911,94572.0,94571.0,58.16172306]
[1763153899746,20.95244911,94572.0,94571.0,58.15872306]
[1763153899949,20.9431209,94572.0,94571.0,58.11750028]
[1763153900153,20.95244911,94572.0,94571.0,58.11350028]
[1763153900522,20.95144911,94572.0,94571.0,58.10950028]
[1763153900677,21.20320911,94572.0,94571.0,58.10650028]
[1763153900854,21.20220911,94572.0,94571.0,58.10250028]
[1763153901060,21.20520911,94572.0,94571.0,58.09850028]
[1763153901424,21.20520911,94572.0,94571.0,58.05727757]
[1763153901630,21.20520911,94572.0,94571.0,58.05327757]
[1763153901832,21.20520911,94572.0,94571.0,58.04927757]
[1763153902044,21.20520911,94572.0,94571.0,58.04627757]
[1763153902252,21.20520911,94572.0,94571.0,58.04227757]
[1763153902465,21.12028911,94572.0,94571.0,58.03927757]
[1763153902674,21.0260409,94572.0,94571.0,58.03627757]
[1763153902890,21.03536911,94572.0,94571.0,58.03227757]
[1763153903102,21.03536911,94572.0,94571.0,58.02927757]
[1763153903326,21.03536911,94572.0,94571.0,58.02527757]
[1763153903535,21.03536911,94572.0,94571.0,58.02227757]
[1763153903758,20.95044911,94572.0,94571.0,58.01927757]
[1763153903976,20.95044911,94572.0,94571.0,58.01012082]
[1763153904191,20.95044911,94572.0,94571.0,58.00712082]
[1763153904486,20.95044911,94572.0,94571.0,58.00412082]
[1763153904697,20.95044911,94572.0,94571.0,57.99812082]
[1763153904923,20.95044911,94572.0,94571.0,57.99412082]
[1763153905167,20.88672911,94572.0,94571.0,57.99012082]
[1763153905383,20.8774009,94572.0,94571.0,57.98612082]
[1763153905590,20.88672911,94572.0,94571.0,57.98212082]
[1763153905827,20.88672911,94572.0,94571.0,57.98012082]
[1763153906038,20.88672911,94572.0,94571.0,57.93790102]
[1763153906249,20.88672911,94572.0,94571.0,57.93390102]
[1763153906461,20.88672911,94572.0,94571.0,57.93090102]
[1763153906673,20.88672911,94572.0,94571.0,57.92690102]
[1763153907104,20.8774009,94572.0,94571.0,57.92690102]
[1763153907527,20.88672911,94572.0,94571.0,57.92690102]
[1763153908306,20.88372911,94572.0,94571.0,57.92690102]
[1763153908464,20.67425003,94572.0,94571.0,57.92690102]
[1763153909716,20.67225003,94572.0,94571.0,57.92690102]
[1763153910068,20.67425003,94572.0,94571.0,57.92690102]
[1763153910268,20.66492182,94572.0,94571.0,57.97031976]
[1763153910474,20.66225003,94572.0,94571.0,58.07398914]
[1763153910670,20.83201003,94572.0,94571.0,58.07398914]
[1763153910871,20.66325003,94572.0,94571.0,57.92690102]
[1763153911314,20.66225003,94572.0,94571.0,57.91416607]
[1763153913057,20.66325003,94572.0,94571.0,57.91416607]
[1763153914760,20.66325003,94572.0,94571.0,57.888691]
[1763153915878,20.66225003,94572.0,94571.0,57.888691]
[1763153916284,20.66425003,94572.0,94571.0,57.888691]
[1763153916682,20.66225003,94572.0,94571.0,57.888691]
[1763153917128,20.66425003,94572.0,94571.0,57.888691]
[1763153920024,20.66425003,94572.0,94571.0,57.99236038]
[1763153920211,20.66425003,94572.0,94571.0,57.888691]
[1763153920608,20.74913003,94572.0,94571.0,57.888691]
[1763153920849,20.83401003,94572.0,94571.0,57.888691]
[1763153921442,20.83401003,94572.0,94571.0,57.87595617]
[1763153921846,20.83201003,94572.0,94571.0,57.87595617]
[1763153922254,20.83301003,94572.0,94571.0,57.87595617]
[1763153923903,20.74813003,94572.0,94571.0,57.87595617]
[1763153924102,20.66325003,94572.0,94571.0,57.86274975]
[1763153924737,20.66325003,94572.0,94571.0,57.83727698]
[1763153925583,19.16075503,94572.0,94571.0,57.83727698]
[1763153925783,19.16075503,94572.0,94571.0,57.83447739]
[1763153925784,19.57989063,94572.0,94571.0,57.83447739]
[1763153925976,19.57989063,94572.0,94571.0,57.93814677]
[1763153926401,20.07989063,94572.0,94571.0,57.93814677]
[1763153926678,20.07889063,94572.0,94571.0,57.93814677]
[1763153926854,20.07889063,94572.0,94571.0,57.83447739]
[1763153927233,20.07889063,94572.0,94571.0,57.83398199]
[1763153929208,20.07989063,94572.0,94571.0,57.83398199]
[1763153934820,20.07989063,94572.0,94571.0,57.83498199]
[1763153935037,20.07989063,94572.0,94571.0,57.93865137]
[1763153935459,20.07989063,94572.0,94571.0,57.8222486]
[1763153940685,20.24957063,94572.0,94571.0,57.8222486]
[1763153941578,20.07989063,94572.0,94571.0,57.8222486]
[1763153941797,20.07056242,94572.0,94571.0,57.8222486]
[1763153942236,20.07056242,94572.0,94571.0,57.79677797]
[1763153942467,20.06956242,94572.0,94571.0,57.79677797]
[1763153943383,19.90395182,94572.0,94571.0,57.69186498]
[1763153943598,19.96786182,94572.0,94571.0,57.68614409]
[1763153943828,19.96886182,94572.0,94571.0,57.68614409]
[1763153944248,19.96786182,94572.0,94571.0,57.68610409]
[1763153944670,19.97086182,94572.0,94571.0,57.68610409]
[1763153945322,19.97086182,94572.0,94571.0,57.49476155]
[1763153945548,19.90695182,94572.0,94571.0,57.46851335]
[1763153945977,19.86353308,94572.0,94571.0,57.46851335]
[1763153946439,19.90695182,94572.0,94571.0,57.46851335]
[1763153946656,19.90395182,94572.0,94571.0,57.46851335]
[1763153947094,19.90595182,94572.0,94571.0,57.46851335]
[1763153947513,19.90395182,94572.0,94571.0,57.46851335]
[1763153947940,19.90595182,94572.0,94571.0,57.46851335]
[1763153948368,19.90395182,94572.0,94571.0,57.46851335]
[1763153948814,19.86053308,94572.0,94571.0,57.57218273]
[1763153949101,19.86053308,94572.0,94571.0,57.46851335]
[1763153949760,19.86253308,94572.0,94571.0,57.4633967]
[1763153950205,19.90395182,94572.0,94571.0,57.4633967]
[1763153950465,19.86053308,94572.0,94571.0,57.4633967]
[1763153950693,19.82516205,94572.0,94571.0,57.4633967]
[1763153951122,19.65448205,94572.0,94571.0,57.56685983]
[1763153951344,19.65648205,94572.0,94571.0,57.46319045]
[1763153952206,19.65347358,94572.0,94571.0,57.46319045]
[1763153952649,19.65147358,94572.0,94571.0,57.46319045]
[1763153953091,19.65347358,94572.0,94571.0,57.46319045]
[1763153953301,19.65347358,94572.0,94571.0,57.56685983]
[1763153953544,19.64734714,94572.0,94571.0,57.56685983]
[1763153953756,19.64734714,94572.0,94571.0,57.61027857]
[1763153953757,19.63455197,94572.0,94571.0,57.61027857]
[1763153953969,19.63455197,94572.0,94571.0,57.60305482]
[1763153954242,19.63455197,94572.0,94571.0,57.4559667]
[1763153957585,19.63455197,94572.0,94571.0,57.49938544]
[1763153958258,19.13455197,94572.0,94571.0,57.49938544]
[1763153959593,18.73920876,94572.0,94571.0,57.49938544]
[1763153959824,18.73864719,94572.0,94571.0,57.61108544]
[1763153960484,18.73864719,94572.0,94571.0,57.4559667]
[1763153961376,19.23864719,94572.0,94571.0,57.4559667]
[1763153963130,19.23864719,94572.0,94571.0,57.4772067]
[1763153963330,19.23864719,94572.0,94571.0,57.4559667]
[1763153964028,19.23864719,94572.0,94571.0,57.4569667]
[1763153964531,19.23864719,94572.0,94571.0,57.4559667]
[1763153964729,19.23864719,94572.0,94571.0,57.4569667]
[1763153964932,19.23864719,94572.0,94571.0,57.4559667]
[1763153965314,19.23864719,94572.0,94571.0,57.44323112]
[1763153966319,19.23964719,94572.0,94571.0,57.44323112]
[1763153966515,19.23964719,94572.0,94571.0,57.44423112]
[1763153966729,19.23964719,94572.0,94571.0,57.44323112]
[1763153967168,19.23964719,94572.0,94571.0,57.44423112]
[1763153967822,19.23964719,94572.0,94571.0,57.44323112]
[1763153968287,19.23864719,94572.0,94571.0,57.44323112]
[1763153968505,19.24064719,94572.0,94571.0,57.44323112]
[1763153968942,19.23864719,94572.0,94571.0,57.44323112]
[1763153969412,19.23964719,94572.0,94571.0,57.44323112]
[1763153969842,19.23864719,94572.0,94571.0,57.44423112]
[1763153970057,19.23964719,94572.0,94571.0,57.44323112]
[1763153970269,19.23964719,94572.0,94571.0,57.41876092]
[1763153970715,19.23964719,94572.0,94571.0,57.41776092]
[1763153970928,19.40932719,94572.0,94571.0,57.41876092]
[1763153971143,19.40832719,94572.0,94571.0,57.41776092]
[1763153971350,19.23864719,94572.0,94571.0,57.41776092]
[1763153971527,19.23964719,94572.0,94571.0,57.41776092]
[1763153972124,19.23864719,94572.0,94571.0,57.41776092]
[1763153972336,19.23964719,94572.0,94571.0,57.41876092]
[1763153972897,19.23964719,94572.0,94571.0,57.41776092]
[1763153973104,19.23864719,94572.0,94571.0,57.41776092]
[1763153973542,19.23864719,94572.0,94571.0,57.41876092]
[1763153974195,19.23864719,94572.0,94571.0,57.41776092]
[1763153974337,19.23964719,94572.0,94571.0,57.41776092]
[1763153974781,19.23864719,94572.0,94571.0,57.41776092]
[1763153975182,19.23964719,94572.0,94571.0,57.41776092]
[1763153975601,19.23864719,94572.0,94571.0,57.41876092]
[1763153975808,19.23864719,94572.0,94571.0,57.41776092]
[1763153976025,19.23864719,94572.0,94571.0,57.41876092]
[1763153976211,18.73864719,94572.0,94571.0,57.41876092]
[1763153976416,18.73864719,94572.0,94571.0,57.41776092]
[1763153976618,18.73864719,94572.0,94571.0,57.41876092]
[1763153977040,18.73864719,94572.0,94571.0,57.41776092]
[1763153977241,18.73864719,94572.0,94571.0,57.46217966]
[1763153977450,18.73864719,94572.0,94571.0,57.57387966]
[1763153978076,18.71739719,94572.0,94571.0,57.57387966]
[1763153978493,18.71739719,94572.0,94571.0,57.57287966]
[1763153978919,18.71739719,94572.0,94571.0,57.57387966]
[1763153979130,18.71739719,94572.0,94571.0,57.57287966]
[1763153979338,18.71739719,94572.0,94571.0,57.57387966]
[1763153979589,18.71739719,94572.0,94571.0,57.57287966]
[1763153979990,18.71739719,94572.0,94571.0,57.57387966]
[1763153980198,18.71739719,94572.0,94571.0,57.57287966]
[1763153980627,18.88707719,94572.0,94571.0,57.57287966]
[1763153981073,18.81507719,94572.0,94571.0,57.57287966]
[1763153981287,18.64539719,94572.0,94571.0,57.57287966]
[1763153981689,18.64539719,94572.0,94571.0,57.57387966]
[1763153982218,18.64539719,94572.0,94571.0,57.57287966]
[1763153982430,18.64539719,94572.0,94571.0,57.57387966]
[1763153983260,18.64539719,94572.0,94571.0,57.53046092]
[1763153984331,18.64539719,94572.0,94571.0,57.57387966]
[1763153984758,18.64539719,94572.0,94571.0,57.57287966]
[1763153984970,18.64539719,94572.0,94571.0,57.57387966]
[1763153985390,18.64539719,94572.0,94571.0,57.57287966]
[1763153985601,18.64539719,94572.0,94571.0,57.57387966]
[1763153985821,18.66467868,94572.0,94571.0,57.57387966]
[1763153990756,18.83427868,94572.0,94571.0,57.57387966]
[1763153992538,18.66467868,94572.0,94571.0,57.57387966]
[1763153992704,18.66467868,94572.0,94571.0,57.39321451]
[1763153992902,18.76834806,94572.0,94571.0,57.39321451]
[1763153993157,18.66467868,94572.0,94571.0,57.38048305]
[1763153993363,19.16467868,94572.0,94571.0,57.38048305]
[1763153993862,19.14539719,94572.0,94571.0,57.38048305]
[1763153994344,19.14539719,94572.0,94571.0,57.37948305]
[1763153994725,19.14539719,94572.0,94571.0,57.38048305]
[1763153994938,19.14539719,94572.0,94571.0,57.37948305]
[1763153995333,19.14539719,94572.0,94571.0,57.38048305]
[1763153995578,19.14639719,94572.0,94571.0,57.38048305]
[1763153995852,19.14539719,94572.0,94571.0,57.38048305]
[1763153996290,19.14539719,94572.0,94571.0,57.37948305]
[1763153997334,18.64539719,94572.0,94571.0,57.37948305]
[1763153997533,18.64539719,94572.0,94571.0,57.53560179]
[1763153998021,18.64479995,94572.0,94571.0,57.53460179]
[1763153998152,18.64479995,94572.0,94571.0,57.53560179]
[1763153998504,18.64479995,94572.0,94571.0,57.53460179]
[1763153998906,18.64479995,94572.0,94571.0,57.53560179]
[1763153999102,18.64479995,94572.0,94571.0,57.53460179]
[1763153999606,18.64479995,94572.0,94571.0,57.53560179]
[1763154000679,18.72959995,94572.0,94571.0,57.53460179]
[1763154000881,18.64479995,94572.0,94571.0,57.53460179]
[1763154001111,18.64479995,94572.0,94571.0,57.53560179]
[1763154001298,18.64479995,94572.0,94571.0,57.53460179]
[1763154001643,18.64479995,94572.0,94571.0,57.53560179]
[1763154001849,18.64479995,94572.0,94571.0,57.53460179]
[1763154002046,18.63679768,94572.0,94571.0,57.49118305]
[1763154002295,18.63679768,94572.0,94571.0,57.53560179]
[1763154002496,18.63679768,94572.0,94571.0,57.53460179]
[1763154003210,18.61554768,94572.0,94571.0,57.53460179]
[1763154003734,18.39895729,94572.0,94571.0,57.53460179]
[1763154003953,18.39895729,94572.0,94571.0,57.53560179]
[1763154004170,18.39895729,94572.0,94571.0,57.53460179]
[1763154004601,18.39895729,94572.0,94571.0,57.53560179]
[1763154004845,18.39895729,94572.0,94571.0,57.53460179]
[1763154005313,18.39895729,94572.0,94571.0,57.53560179]
[1763154006631,18.39895729,94572.0,94571.0,57.49218305]
[1763154006855,18.39895729,94572.0,94571.0,57.53560179]
[1763154007524,18.39895729,94572.0,94571.0,57.53460179]
[1763154007749,18.39895729,94572.0,94571.0,57.53560179]
[1763154008183,18.39895729,94572.0,94571.0,57.53460179]
[1763154008397,18.39895729,94572.0,94571.0,57.53560179]
[1763154008609,18.39895729,94572.0,94571.0,57.53460179]
[1763154009046,18.39895729,94572.0,94571.0,57.53560179]
[1763154009261,18.39895729,94572.0,94571.0,57.49218305]
[1763154010174,18.41825313,94572.0,94571.0,57.49218305]
[1763154010390,18.41825313,94572.0,94571.0,57.49118305]
[1763154010608,18.41825313,94572.0,94571.0,57.49218305]
[1763154010836,18.58785313,94572.0,94571.0,57.49218305]
[1763154012126,18.50305313,94572.0,94571.0,57.49218305]
[1763154012557,18.50305313,94572.0,94571.0,57.38048305]
[1763154012770,18.41825313,94572.0,94571.0,57.53560179]
[1763154012981,18.41825313,94572.0,94571.0,57.53378279]
[1763154014688,18.41825313,94572.0,94571.0,57.53178679]
[1763154015958,18.41825313,94572.0,94571.0,57.53178679]
[1763154016362,18.41825313,94572.0,94571.0,57.53078679]
[1763154016787,18.41825313,94572.0,94571.0,57.53478679]
[1763154017779,18.41825313,94572.0,94571.0,57.47864093]
[1763154018777,18.41825313,94572.0,94571.0,57.52205967]
[1763154019402,18.41825313,94572.0,94571.0,57.51805967]
[1763154020170,18.41825313,94572.0,94571.0,57.52105967]
[1763154020575,18.41825313,94572.0,94571.0,57.51805967]
[1763154020752,18.50305313,94572.0,94571.0,57.52105967]
[1763154020954,18.41825313,94572.0,94571.0,57.52105967]
[1763154021153,18.41825313,94572.0,94571.0,57.51805967]
[1763154021367,18.41825313,94572.0,94571.0,57.52205967]
[1763154022613,18.41825313,94572.0,94571.0,57.54329967]
[1763154023285,18.39700313,94572.0,94571.0,57.54329967]
[1763154023779,18.39700313,94572.0,94571.0,57.53929967]
[1763154024185,18.39700313,94572.0,94571.0,57.54329967]
[1763154024186,18.38861787,94572.0,94571.0,57.54329967]
[1763154024463,17.85454487,94572.0,94571.0,57.54329967]
[1763154025159,17.36458085,94572.0,94571.0,57.54329967]
[1763154025333,17.34333085,94572.0,94571.0,57.54329967]
[1763154025534,17.30278501,94572.0,94571.0,57.54329967]
[1763154025675,17.30086973,94572.0,94571.0,57.53929967]
[1763154025874,16.87832736,94572.0,94571.0,57.51805967]
[1763154026115,16.74965767,94572.0,94571.0,57.52405967]
[1763154026342,16.74965767,94572.0,94571.0,57.52005967]
[1763154026541,16.72565767,94572.0,94571.0,57.54429967]
[1763154026737,16.74499359,94572.0,94571.0,57.55154705]
[1763154026993,16.74499359,94572.0,94571.0,57.51805967]
[1763154027238,16.74499359,94572.0,94571.0,57.52605967]
[1763154027619,16.74499359,94572.0,94571.0,57.51805967]
[1763154027818,16.74386008,94572.0,94571.0,57.51805967]
[1763154028800,16.74386008,94572.0,94571.0,57.52305967]
[1763154029181,16.74386008,94572.0,94571.0,57.51905967]
[1763154029299,16.74386008,94572.0,94571.0,57.52305967]
[1763154029697,16.74386008,94572.0,94571.0,57.51805967]
[1763154029919,16.74386008,94572.0,94571.0,57.52305967]
[1763154030154,16.74386008,94572.0,94571.0,57.51905967]
[1763154030369,16.74386008,94572.0,94571.0,57.51805967]
[1763154030566,16.74386008,94572.0,94571.0,57.52205967]
[1763154030755,16.82866008,94572.0,94571.0,57.52305967]
[1763154032412,16.82866008,94572.0,94571.0,57.51905967]
[1763154032615,16.82866008,94572.0,94571.0,57.52205967]
[1763154033242,16.82866008,94572.0,94571.0,57.52305967]
[1763154033613,16.74386008,94572.0,94571.0,57.47964093]
[1763154034663,16.74386008,94572.0,94571.0,57.52305967]
[1763154034891,16.74386008,94572.0,94571.0,57.52205967]
[1763154035315,16.74386008,94572.0,94571.0,57.52305967]
[1763154035549,16.74386008,94572.0,94571.0,57.51905967]
[1763154035760,16.74386008,94572.0,94571.0,57.66885967]
[1763154035961,16.74386008,94572.0,94571.0,57.51805967]
[1763154036386,16.74386008,94572.0,94571.0,57.47864093]
[1763154036559,16.74386008,94572.0,94571.0,57.51905967]
[1763154036757,16.74386008,94572.0,94571.0,57.51805967]
[1763154037105,16.74386008,94572.0,94571.0,57.52205967]
[1763154037282,16.74386008,94572.0,94571.0,57.51805967]
[1763154037500,16.74386008,94572.0,94571.0,57.52105967]
[1763154038002,16.74386008,94572.0,94571.0,57.52205967]
[1763154038629,16.74386008,94572.0,94571.0,57.52105967]
[1763154038752,16.74386008,94572.0,94571.0,57.51905967]
[1763154038952,16.56392882,94572.0,94571.0,57.52205967]
[1763154039153,16.56392882,94572.0,94571.0,57.51805967]
[1763154039619,16.56392882,94572.0,94571.0,57.52305967]
[1763154039822,16.56392882,94572.0,94571.0,57.51905967]
[1763154040231,16.56392882,94572.0,94571.0,57.52305967]
[1763154040817,16.64868882,94572.0,94571.0,57.52205967]
[1763154041241,16.64868882,94572.0,94571.0,57.52405967]
[1763154042433,16.56392882,94572.0,94571.0,57.52405967]
[1763154042750,16.64868882,94572.0,94571.0,57.52405967]
[1763154044580,16.35064718,94572.0,94571.0,57.52405967]
[1763154045781,16.34664718,94572.0,94571.0,57.52405967]
[1763154048233,16.34664718,94572.0,94571.0,57.67385967]
[1763154048846,16.34664718,94572.0,94571.0,57.52405967]
[1763154049048,16.34664718,94572.0,94571.0,57.67385967]
[1763154049246,16.24044718,94572.0,94571.0,57.67385967]
[1763154049468,16.24044718,94572.0,94571.0,57.66985967]
[1763154049888,16.24044718,94572.0,94571.0,57.67185967]
[1763154050311,16.24044718,94572.0,94571.0,57.67485967]
[1763154050729,16.24044718,94572.0,94571.0,57.62844093]
[1763154050941,16.15568718,94572.0,94571.0,57.62844093]
[1763154051143,16.15568718,94572.0,94571.0,57.63144093]
[1763154051351,16.15568718,94572.0,94571.0,57.62744093]
[1763154051553,16.15568718,94572.0,94571.0,57.62444093]
[1763154051752,16.15568718,94572.0,94571.0,57.67185967]
[1763154051956,16.15568718,94572.0,94571.0,57.67085967]
[1763154052370,16.15568718,94572.0,94571.0,57.67485967]
[1763154053011,16.15568718,94572.0,94571.0,57.48164093]
[1763154053452,16.15568718,94572.0,94571.0,57.52505967]
[1763154053859,16.15568718,94572.0,94571.0,57.52205967]
[1763154054267,16.15568718,94572.0,94571.0,57.52405967]
[1763154054471,16.15568718,94572.0,94571.0,57.52005967]
[1763154054679,16.15568718,94572.0,94571.0,57.52405967]
[1763154058428,16.15568718,94572.0,94571.0,57.55259228]
[1763154058686,16.15568718,94572.0,94571.0,57.52405967]
[1763154060682,16.24044718,94572.0,94571.0,57.52405967]
[1763154063381,16.24044718,94572.0,94571.0,57.55263346]
[1763154063581,16.24044718,94572.0,94571.0,57.52405967]
[1763154064686,16.13434718,94572.0,94571.0,57.55263598]
[1763154065463,16.04958718,94572.0,94571.0,57.55263598]
[1763154066430,16.04958718,94572.0,94571.0,57.52405967]
[1763154067403,16.04958718,94572.0,94571.0,57.48064093]
[1763154067793,16.04958718,94572.0,94571.0,57.52405967]
[1763154068022,16.04958718,94572.0,94571.0,57.52005967]
[1763154068293,16.04958718,94572.0,94571.0,57.47664093]
[1763154068535,16.04958718,94572.0,94571.0,57.47964093]
[1763154068760,16.04958718,94572.0,94571.0,57.47664093]
[1763154069213,16.04958718,94572.0,94571.0,57.47464093]
[1763154069407,16.04958718,94572.0,94571.0,57.47664093]
[1763154069595,16.04958718,94572.0,94571.0,57.36494093]
[1763154069893,16.04958718,94572.0,94571.0,57.36594093]
[1763154070299,16.04958718,94572.0,94571.0,57.36394093]
[1763154070682,16.21910718,94572.0,94571.0,57.36494093]
[1763154071077,16.21910718,94572.0,94571.0,57.36594093]
[1763154071959,16.04958718,94572.0,94571.0,57.36594093]
[1763154072346,16.04958718,94572.0,94571.0,57.34933944]
[1763154073349,16.04958718,94572.0,94571.0,57.34633944]
[1763154073773,16.04958718,94572.0,94571.0,57.34833944]
[1763154075350,16.04958718,94572.0,94571.0,57.33560907]
[1763154076036,16.04958718,94572.0,94571.0,57.33360907]
[1763154076251,16.09300592,94572.0,94571.0,57.33360907]
[1763154076452,16.59300592,94572.0,94571.0,57.33460907]
[1763154076655,16.59300592,94572.0,94571.0,57.33360907]
[1763154077063,16.59300592,94572.0,94571.0,57.33460907]
[1763154077268,16.59300592,94572.0,94571.0,57.33360907]
[1763154077702,16.6966753,94572.0,94571.0,57.3100759]
[1763154077928,16.6966753,94572.0,94571.0,57.29734099]
[1763154078199,16.7630853,94572.0,94571.0,57.29734099]
[1763154078402,16.59300592,94572.0,94571.0,57.29734099]
[1763154078608,16.59400592,94572.0,94571.0,57.29734099]
[1763154079040,16.65941592,94572.0,94571.0,57.29734099]
[1763154079250,16.65941592,94572.0,94571.0,57.1926755]
[1763154079489,17.08437592,94572.0,94571.0,57.19241031]
[1763154079706,17.1880453,94572.0,94571.0,57.19241031]
[1763154080109,17.1860453,94572.0,94571.0,57.19241031]
[1763154080313,17.1880453,94572.0,94571.0,57.19241031]
[1763154080528,17.08437592,94572.0,94571.0,57.19241031]
[1763154080748,17.33877592,94572.0,94571.0,57.19241031]
[1763154081387,17.33877592,94572.0,94571.0,56.76433394]
[1763154081388,17.25397592,94572.0,94571.0,56.76433394]
[1763154081599,17.1880453,94572.0,94571.0,56.76433394]
[1763154082218,17.1860453,94572.0,94571.0,56.76433394]
[1763154082676,17.1880453,94572.0,94571.0,56.76433394]
[1763154083094,17.1860453,94572.0,94571.0,56.76433394]
[1763154083315,17.01596592,94572.0,94571.0,56.75772162]
[1763154083533,17.08537592,94572.0,94571.0,56.75772162]
[1763154084161,17.08537592,94572.0,94571.0,56.31395913]
[1763154084373,17.08537592,94572.0,94571.0,56.28995913]
[1763154084573,17.1860453,94572.0,94571.0,56.28995913]
[1763154084797,17.1860453,94572.0,94571.0,56.06537582]
[1763154085006,17.1880453,94572.0,94571.0,55.81193473]
[1763154085211,17.1880453,94572.0,94571.0,55.38939236]
[1763154085421,17.1860453,94572.0,94571.0,55.38939236]
[1763154085620,17.1860453,94572.0,94571.0,55.16480905]
[1763154085876,17.1890453,94572.0,94571.0,55.14080905]
[1763154086082,17.19458258,94572.0,94571.0,53.74080905]
[1763154086296,17.19558258,94572.0,94571.0,53.31826668]
[1763154086698,17.19458258,94572.0,94571.0,53.09368337]
[1763154086969,17.19558258,94572.0,94571.0,52.98626755]
[1763154087210,17.19558258,94572.0,94571.0,52.56372518]
[1763154087431,17.19558258,94572.0,94571.0,52.55740424]
[1763154087637,17.19558258,94572.0,94571.0,52.27924179]
[1763154087850,17.19558258,94572.0,94571.0,51.9707255]
[1763154088312,17.19258258,94572.0,94571.0,50.28101994]
[1763154088531,17.14030689,94572.0,94571.0,48.65962884]
[1763154088745,17.14030689,94572.0,94571.0,47.74592572]
[1763154088746,17.0879132,94572.0,94571.0,47.74592572]
[1763154088964,17.08337592,94572.0,94571.0,47.74592572]
[1763154089177,17.04195718,94572.0,94571.0,47.54796666]
[1763154089389,17.04195718,94572.0,94571.0,47.51613907]
[1763154089635,17.08737592,94572.0,94571.0,47.29155576]
[1763154089850,17.04395718,94572.0,94571.0,47.29155576]
[1763154090280,17.04195718,94572.0,94571.0,47.29155576]
[1763154090713,17.10280592,94572.0,94571.0,47.29155576]
[1763154090998,17.21062718,94572.0,94571.0,47.29155576]
[1763154091208,17.14822718,94572.0,94571.0,47.29155576]
[1763154091469,17.05938718,94572.0,94571.0,47.29155576]
[1763154091678,16.97454718,94572.0,94571.0,47.29155576]
[1763154091896,17.01996592,94572.0,94571.0,47.29155576]
[1763154092106,16.97654718,94572.0,94571.0,47.29155576]
[1763154092336,16.97454718,94572.0,94571.0,47.29155576]
[1763154092555,17.03894718,94572.0,94571.0,47.29155576]
[1763154092774,17.08036592,94572.0,94571.0,47.29155576]
[1763154092995,17.08036592,94572.0,94571.0,47.1430135]
[1763154093209,17.08590267,94572.0,94571.0,47.1430135]
[1763154093638,17.08390267,94572.0,94571.0,47.1430135]
[1763154094071,17.08390267,94572.0,94571.0,46.71645181]
[1763154094072,17.08590267,94572.0,94571.0,46.71645181]
[1763154094517,17.08390267,94572.0,94571.0,46.71645181]
[1763154094778,17.08390267,94572.0,94571.0,46.71227255]
[1763154095029,17.08590267,94572.0,94571.0,46.28973018]
[1763154095226,17.08590267,94572.0,94571.0,46.27926495]
[1763154095451,16.97536525,94572.0,94571.0,46.2673406]
[1763154095665,16.97236525,94572.0,94571.0,46.2673406]
[1763154096125,16.97436525,94572.0,94571.0,46.2673406]
[1763154096343,16.97236525,94572.0,94571.0,46.2673406]
[1763154096782,16.26638624,94572.0,94571.0,46.2673406]
[1763154096999,15.4538734,94572.0,94571.0,46.2673406]
[1763154097204,15.4538734,94572.0,94571.0,46.36334346]
[1763154097420,15.4508734,94572.0,94571.0,46.36334346]
[1763154097842,15.4518734,94572.0,94571.0,46.36334346]
[1763154098222,15.4508734,94572.0,94571.0,46.36334346]
[1763154098928,15.4508734,94572.0,94571.0,46.36434346]
[1763154099136,15.4508734,94572.0,94571.0,46.36334346]
[1763154099357,14.9508734,94572.0,94571.0,46.36334346]
[1763154099577,14.9508734,94572.0,94571.0,46.36534346]
[1763154099779,14.9508734,94572.0,94571.0,46.36334346]
[1763154100212,14.9508734,94572.0,94571.0,46.36534346]
[1763154100807,15.0357134,94572.0,94571.0,46.4087622]
[1763154101121,14.9508734,94572.0,94571.0,46.4087622]
[1763154101335,14.96298031,94572.0,94571.0,46.30509282]
[1763154101727,14.96192301,94572.0,94571.0,46.30509282]
[1763154102398,14.96192301,94572.0,94571.0,46.30309282]
[1763154102580,14.96192301,94572.0,94571.0,46.30609282]
[1763154102814,14.96192301,94572.0,94571.0,46.4097622]
[1763154103025,14.96192301,94572.0,94571.0,46.4067622]
[1763154103232,14.96192301,94572.0,94571.0,46.4097622]
[1763154105739,14.94276902,94572.0,94571.0,46.4097622]
[1763154106342,14.93066211,94572.0,94571.0,46.4097622]
[1763154106900,14.942562,94572.0,94571.0,46.4067622]
[1763154107322,14.942562,94572.0,94571.0,46.4097622]
[1763154110720,15.10026211,94572.0,94571.0,46.4097622]
[1763154111333,14.51272869,94572.0,94571.0,46.30609282]
[1763154111535,14.08976869,94572.0,94571.0,46.30609282]
[1763154111735,14.08962054,94572.0,94571.0,46.30609282]
[1763154111940,13.66707817,94572.0,94571.0,46.30609282]
[1763154112138,13.66707817,94572.0,94571.0,46.30309282]
[1763154112526,13.66707817,94572.0,94571.0,46.30609282]
[1763154112886,13.36923019,94572.0,94571.0,46.41469282]
[1763154113020,12.50132779,94572.0,94571.0,46.41969282]
[1763154113222,12.50132779,94572.0,94571.0,46.74269282]
[1763154113223,11.93117404,94572.0,94571.0,46.74269282]
[1763154113560,11.56064588,94572.0,94571.0,46.7432196]
[1763154113824,11.56064588,94572.0,94571.0,46.7482196]
[1763154114018,10.88991238,94572.0,94571.0,46.7432196]